Cogmind - Beta 16 @@@ ROGUE MODE // 2025.12.08 @ 22:38:53 Player: Grundleshunts Result: Destroyed by Y-45 Defender with Beam Rifle Performance ------------- Evolutions (1) 500 Regions Visited (2) 400 Robots Destroyed (27) 135 Value Destroyed (600) 600 Prototype IDs (5) 100 Alien Tech Used (0) 0 Bonus (0) 0 TOTAL SCORE: 1735 Bonus ------- None Cogmind --------- Core Integrity 0/400 Matter 180/300 Energy 99/100 System Corruption 0% Temperature Cool (18) Movement Core (100) Ox1 Location -9/Materials Parts ------- > --- POWER (1) -------- (None) > --- PROPULSION (4) --- (None) > --- UTILITY (2) ------ Small Storage Unit > --- WEAPON (2) ------- (None) > --- INVENTORY (8) ---- Heavy Ion Engine Seismic Detector Improved Assault Rifle Datajack Plasma Cutter Peak State ------------ > --- POWER ------------ Light Ion Engine > --- PROPULSION ------- Light Treads Light Treads Flight Unit Flight Unit > --- UTILITY ---------- Small Storage Unit Large Storage Unit > --- WEAPON ----------- Grenade Launcher > --- INVENTORY -------- Ion Engine Light Ion Engine Flight Unit Flight Unit Flight Unit Flight Unit Flight Unit Seismic Detector ECM Suite Light Assault Rifle Datajack Hammer [Rating: 9] Favorites ----------- Power Light Ion Engine Engine Light Ion Engine Propulsion Light Treads Treads Light Treads Leg Aluminum Leg Flight Unit Flight Unit Utility Small Storage Unit Device ECM Suite Storage Small Storage Unit Weapon Assault Rifle Ballistic Gun Assault Rifle Launcher Grenade Launcher Impact Weapon Hammer Special Melee Weapon Datajack Build | -11 -10 -9 ------- Run | Yrd Mat Mat Slots Evolved 2 | . . 2 Power . | . . . Propulsion 2 | . . 2 Utility . | . . . Weapon . | . . . Parts Attached 22 | 6 7 9 Power 3 | 1 1 1 Engine 3 | 1 1 1 Core . | . . . Reactor . | . . . Propulsion 10 | 2 2 6 Treads 3 | 2 1 . Leg 1 | . 1 . Wheel . | . . . Hover . | . . . Flight 6 | . . 6 Utility 3 | 1 1 1 Device 1 | . . 1 Storage 2 | 1 1 . Processor . | . . . Hackware . | . . . Protection . | . . . Artifact . | . . . Weapon 6 | 2 3 1 Energy Gun . | . . . Energy Cannon . | . . . Ballistic Gun 3 | 2 1 . Ballistic Cannon . | . . . Launcher 1 | . 1 . Special Weapon . | . . . Impact Weapon 1 | . . 1 Slashing Weapon . | . . . Piercing Weapon . | . . . Special Melee Weapon 1 | . 1 . Unidentified Prototypes . | . . . Parts Lost 14 | . 4 10 Power 3 | . 1 2 Propulsion 7 | . 1 6 Utility 1 | . . 1 Weapon 3 | . 2 1 Highest Loss Streak 10 | . 4 10 To Critical Strikes . | . . . Average Backups 8 | . 9 7 Power 1 | . 1 1 Propulsion 3 | . 4 1 Utility 1 | . 1 1 Weapon 1 | . 1 1 Tool/Special . | . . . Unused Backups 6 | . . 6 Power 2 | . . 2 Propulsion 1 | . . 1 Utility 1 | . . 1 Weapon 1 | . . 1 Tool/Special 1 | . . 1 Average Slot Usage (%) 81 | . 84 69 Engine 11 | . 12 9 Treads 20 | . 25 . Flight 7 | . . 36 Device 1 | . . 8 Storage 21 | . 23 11 Ballistic Gun 12 | . 16 . Launcher 4 | . 5 . Peak Build Rating 9 | 6 8 9 Average Rating 6 | 4 6 6 On Entrance 4 | . 6 7 Avg Prop Armor Cover (%) 7 | . 12 5 Naked Turns . | . . . Heaviest Build 32 | 11 32 12 Greatest Support 40 | 40 40 16 Greatest Overweight (x) 3 | . 3 2 Average Overweight (x) . | . . . Largest Inventory Capacity 15 | 8 15 15 Average Capacity 11 | 7 12 8 Most Carried 15 | 1 15 14 Average Carried 9 | . 10 7 Final Capacity 15 | 8 15 8 Final Carried 14 | 1 14 5 Class Distribution -------------------- 85% | Mutant 14% | Sprinter Dominant Class ---------------- Mutant | -10/Materials Sprinter | -9/Materials Resources | -11 -10 -9 ----------- Run | Yrd Mat Mat Matter Collected 615 | 254 326 35 Remotely . | . . . Salvage Created 527 | . 477 50 Parts 42 | . 37 5 Haulers Intercepted . | . . . Recyclers Shooed 1 | . 1 . Parts Field Recycled . | . . . Retrieved Matter . | . . . Parts Self-Destructed . | . . . Prevented . | . . . Parts Restored . | . . . Kills | -11 -10 -9 ------- Run | Yrd Mat Mat Combat Hostiles Destroyed 23 | . 20 3 Guns 14 | . 14 . AOE 9 | . 6 3 Classes Destroyed 5 | . 4 1 Worker 1 | . . 1 Operator 2 | . 2 . Watcher 1 | . 1 . Swarmer 11 | . 9 2 Grunt 12 | . 11 1 Best Kill Streak 7 | . 7 4 Combat Bots Only 7 | . 7 3 Max Kills in Single Turn 4 | . 2 4 Gunslinging . | . . . Exploded 3 | . 2 3 Melee . | . . . Uniques/NPCs Destroyed . | . . . Combat | -11 -10 -9 -------- Run | Yrd Mat Mat Hostile Shots Fired 180 | . 101 79 Missed 50 | . 17 33 Hits 130 | . 84 46 Projectile 130 | . 84 46 Critical Strikes 3 | . . 3 Damage Taken 1595 | . 889 706 Core 582 | . 170 412 Absorbed by Shields . | . . . Core Remaining (%) 66 | 100 32 . Volleys Fired 72 | . 70 2 Largest 2 | . 2 1 Hottest 40 | . 40 30 Shots Fired 112 | . 110 2 Gun 100 | . 100 . Cannon . | . . . Launcher 12 | . 10 2 Special . | . . . Kinetic 100 | . 100 . Thermal . | . . . Explosive 12 | . 10 2 Electromagnetic . | . . . Robot Hit Streak 9 | . 9 1 Robot Miss Streak 3 | . 3 1 Penetration Max . | . . . Secondary Targets 1 | . 1 . Max Gunslinging Chain 1 | . 1 . Shots Hit Robots 67 | . 66 1 Core Hits 45 | . 40 5 Critical Kills . | . . . Critical Parts Destroyed . | . . . Critical Strikes . | . . . Melee Attacks . | . . . Impact . | . . . Slashing . | . . . Piercing . | . . . Sneak Attacks . | . . . Combat Hostiles . | . . . Follow-up Attacks . | . . . Damage Inflicted 1567 | . 1262 305 Guns 684 | . 684 . Cannons . | . . . Explosions 880 | . 575 305 Melee . | . . . Ramming 3 | . 3 . Kinetic 684 | . 684 . Thermal . | . . . Explosive 880 | . 575 305 Electromagnetic . | . . . Impact . | . . . Slashing . | . . . Piercing . | . . . Highest Corruption . | . . . Average Corruption . | . . . Corruption Purged . | . . . Corruption Blocked . | . . . Overload Shots . | . . . Overflow Damage 22 | . 22 . Projectiles . | . . . Explosions 22 | . 22 . Melee . | . . . Knockbacks . | . . . Impact . | . . . Kinetic . | . . . Secondary . | . . . Self-Inflicted Damage 120 | . 55 65 Shots 4 | . 2 2 Rammed 1 | . 1 . Targets Rammed 1 | . 1 . Kicked . | . . . Crushed . | . . . Highest Temperature 12 | . 12 . Average Temperature 5 | . 5 . Received Heat Transfer 537 | . 345 192 Siege Activations . | . . . Martial Activations . | . . . Shielding Activations . | . . . Robots Disrupted . | . . . Combat Hostiles . | . . . Robots Corrupted . | . . . Combat Hostiles . | . . . Parts Fried . | . . . Impact Corruptions . | . . . Robots Melted . | . . . Combat Hostiles . | . . . Parts Melted . | . . . Heat Transferred . | . . . Parts Sabotaged . | . . . Parts Stolen . | . . . Parts Stripped . | . . . Power Chain Reactions . | . . . Alert | -11 -10 -9 ------- Run | Yrd Mat Mat Maximum Alert Level 1 | . 1 . Low Security (%) 98 | 100 97 100 Level 1 1 | . 2 . Level 2 . | . . . Level 3 . | . . . Level 4 . | . . . Level 5 . | . . . High Security . | . . . Max Security . | . . . Peak Influence 203 | . 203 121 Initial 81 | . . 81 Average 50 | . 53 49 Influence Increases 828 | . 575 253 Destroy 0b10 Robot/C 460 | . 400 60 Destroy 0b10 Robot/NC 20 | . 15 5 Destroy Leader 82 | . 72 10 Successful Hack 9 | . 7 2 Disable Machine 30 | . 15 15 Destroy Structure 62 | . 51 11 Partial Spotted 30 | . . 30 Lose Combat Pursuer 135 | . 15 120 Influence Decreases 747 | . 380 367 Entered New Map 114 | . . 114 Time Decay 450 | . 340 110 Lost Part 127 | . 40 87 Purge Threat 56 | . . 56 Squads Dispatched 3 | . 3 . Investigation 2 | . 2 . Extermination . | . . . Reinforcement 1 | . 1 . Assault . | . . . Garrison . | . . . Intercept . | . . . Searches Triggered . | . . . Construction Impeded . | . . . Haulers Reinforced . | . . . Active Scanning Responses . | . . . Cargo Convoy Interrupts . | . . . Stealth | -11 -10 -9 --------- Run | Yrd Mat Mat Distress Signals 2 | . 1 1 Communications Jammed . | . . . Distress Signals . | . . . Times Spotted 56 | . 30 26 Peak Tracking Total 14 | . 6 14 Tactical Retreats 8 | . 1 7 ECM-based Alert Blocks 5 | . . 5 Traps | -11 -10 -9 ------- Run | Yrd Mat Mat Traps Triggered 2 | . 1 1 Indirectly . | . . . Trap Hack Attempts . | . . . Triggered . | . . . Disarmed . | . . . Reprogrammed . | . . . Reused . | . . . Traps Extracted . | . . . Installed . | . . . Triggered . | . . . Machines | -11 -10 -9 ---------- Run | Yrd Mat Mat Machines Disabled 2 | . 1 1 Max in Single Turn 1 | . 1 1 Machines Repaired . | . . . Machines Dismantled . | . . . Machines Sabotaged . | . . . Overloaded Fab Kills . | . . . Hacking | -11 -10 -9 --------- Run | Yrd Mat Mat Machines Accessed 15 | . 6 9 Terminals 12 | . 5 7 Fabricators . | . . . Repair Stations 1 | . . 1 Recycling Units 1 | . 1 . Scanalyzers 1 | . . 1 Garrison Access . | . . . Total Hacks 34 | . 10 24 Successful 18 | . 6 12 Failed 16 | . 4 12 Catastrophic 3 | . 1 2 Database Lockouts . | . . . Manual 2 | . 1 1 Terminals 22 | . 8 14 Fabricators . | . . . Repair Stations 3 | . . 3 Recycling Units 2 | . 2 . Scanalyzers 7 | . . 7 Garrison Access . | . . . Terminal Hacks 8 | . 4 4 Record 1 | . 1 . Prototype ID Bank 3 | . 1 2 Unreport Threat 1 | . . 1 Locate Traps 1 | . 1 . Hauler Manifests 2 | . 1 1 Fabricator Hacks . | . . . Repair Station Hacks 1 | . . 1 Scan Component 1 | . . 1 Recycling Unit Hacks 2 | . 2 . Report Inventory 1 | . 1 . Retrieve Components 1 | . 1 . Scanalyzer 7 | . . 7 Insert Component 3 | . . 3 Analyze 4 | . . 4 Garrison Access Hacks . | . . . Unauthorized Hacks . | . . . Terminals . | . . . Fabricators . | . . . Repair Stations . | . . . Recycling Units . | . . . Scanalyzers . | . . . Garrison Access . | . . . Data Cores Recovered . | . . . Used . | . . . Hacking Detections 11 | . 3 8 Full Trace Events 1 | . 1 . Feedback Events . | . . . Feedback Blocked . | . . . Robot Schematics Acquired . | . . . Robots Built . | . . . Authchips . | . . . Time . | . . . Total Robot Build Rating . | . . . Part Schematics Acquired 3 | . . 3 Parts Built . | . . . Authchips . | . . . Time . | . . . Total Part Build Rating . | . . . Part Studies Acquired . | . . . Parts Repaired . | . . . Time . | . . . Parts Recycled . | . . . Recycled Matter . | . . . Retrieved Matter . | . . . Retrieved Components 10 | . 10 . Parts Scanalyzed 3 | . . 3 Part Schematics Acquired 3 | . . 3 Parts Damaged . | . . . Bothacking | -11 -10 -9 ------------ Run | Yrd Mat Mat Used RIF Installer . | . . . Robots Hacked . | . . . Non-combat . | . . . Combat . | . . . Robot Hacks Applied . | . . . Relay Couplers Released . | . . . Fabnet Peak Effective % . | . . . Robots Rewired . | . . . Allies Hacked . | . . . Hacks Repelled . | . . . Allies | -11 -10 -9 -------- Run | Yrd Mat Mat Total Allies . | . . . Largest Group . | . . . Highest-Rated Group . | . . . Highest-Rated Ally . | . . . Total Orders . | . . . Ally Attacks . | . . . Total Damage . | . . . Kills . | . . . Allies Corrupted . | . . . Allies Melted . | . . . Intel | -11 -10 -9 ------- Run | Yrd Mat Mat Active Infowar (turns) 54 | . . 54 ECM 54 | . . 54 Robot Analysis Total . | . . . Derelict Logs Recovered . | . . . Drone Launches . | . . . Drone Recoveries . | . . . Exploration | -11 -10 -9 ------------- Run | Yrd Mat Mat Turns Passed 1392 | 62 1047 283 Spaces Moved 1205 | 36 479 690 Core 18 | 4 . 14 Treads 509 | 32 477 . Legs 2 | . 2 . Wheels . | . . . Hover . | . . . Flight 676 | . . 676 Fastest Speed 31 | 50 160 31 Average Speed 91 | 147 168 35 Slowest Speed 330 | 160 330 200 Overloaded Moves . | . . . Propulsion Burnouts . | . . . Robots Hopped 12 | . . 12 Potential Cave-ins . | . . . Cave-ins Triggered . | . . . Exploration Rate (%) 44 | 5 89 39 Regions Visited 2 Branch Regions . Pre-discovered Areas . | . . . Known Exits Taken . | . . . Unknown Exits Taken 2 | 1 1 . Scrap Searched . | . . . Spaces Dug 4 | . 4 . Terrain Destroyed 66 | . 57 9 Melee . | . . . Projectile . | . . . AOE 66 | . 57 9 Terrain Rammed . | . . . Walls Destroyed . | . . . Machines Disabled . | . . . Actions | -11 -10 -9 --------- Run | Yrd Mat Mat Total 1378 | 42 616 720 Wait 50 | . 39 11 Move 1180 | 35 478 667 Hop 11 | . . 11 Pick Up 20 | 1 14 5 Fast Attach 11 | 6 5 . Attach 13 | . 3 10 Detach 7 | . 3 4 Swap 2 | . 1 1 Drop 11 | . 2 9 Fire 72 | . 70 2 Melee . | . . . Ram . | . . . Kick . | . . . Crush 1 | . 1 . Escape Stasis . | . . . Rewire . | . . . Trap . | . . . Miscellaneous . | . . . Route ------- -11/Scrapyard -10/Materials (discovered 4 exits: *Mat x2 / [*Min x2]) -9/Materials (discovered 2 exits: [*Mat] / [*Min]) History --------- Turn | Location | Event 14 | -11/Scrapyard | Discovered new exit (range 15) 63 | -11/Scrapyard | Entered Materials 331 | -10/Materials | Build established: Mutant 335 | -10/Materials | Discovered new exit (range 4) 563 | -10/Materials | Derelicts attacked the area 649 | -10/Materials | Core integrity fell below 50% 651 | -10/Materials | Destroyed 7 combat bots 671 | -10/Materials | Lost 4 parts (1p1n2w) 890 | -10/Materials | Discovered new exit (range 15) 982 | -10/Materials | Discovered new exit (range 15) 1066 | -10/Materials | Discovered new exit (range 11) 1110 | -10/Materials | Entered another Materials area 1110 | -9/Materials | Evolved 2 slots: Propulsion x2 1274 | -9/Materials | Discovered new exit (range 14) 1383 | -9/Materials | Core integrity fell below 50% 1388 | -9/Materials | Core integrity fell below 20% 1388 | -9/Materials | Discovered new exit (range 14) 1393 | -9/Materials | Destroyed by Y-45 Defender with Beam Rifle Last Messages --------------- Flight Unit destroyed. S-10 Pest destroyed. G-34 Mercenary destroyed. K-01 Serf destroyed. U-05 Engineer lays Concrete. Grenade Launcher destroyed. U-05 Engineer builds a Wall. Flight Unit destroyed. U-05 Engineer lays Concrete. Acquired 2 matter. ECM Suite destroyed. S-10 Pest destroyed. U-05 Engineer lays Concrete. Acquired 33 matter. U-05 Engineer lays Concrete. Critical hit (Burn: +37). U-05 Engineer lays Concrete. U-05 Engineer builds a Door. EXIT=FOUND U-05 Engineer lays Concrete. Map ----- +----------------------------------------------------+ | ??????????# #????????????????????????????????????? | | ??????????# #????????????????????????????????????? | | ??????????# #????????????????????????????????????? | | ??????????# #????????????????????????????????????? | | ??????????# #????????????????????????????????????? | | ??????????# #????????????????????????????????????? | | ??????????# #????????????????????????????????????? | | ??????????# #????????????????????????????????????? | | ??????????# #????????????????????????????????????? | | ??????????# #????????????????????????????????????? | | #????????##+#######???? ???????????????????????? | | #????????# #??# |?????????????????????? | | #????????# """ #??? a "?????????????????????? | | #????????# """"" #??? |?????????????????????? | | #????????# """"" #??? w ?????????????????????? | | #????????# """"" ##?? t "??????????????????????? | | #????????# " #??# #??????????????????????? | | #????????# #??# #??????????????????????? | | ######???# #???# #??????????????????????? | | T #???# % #???# #??????????????????????? | | #???### +# #??##a ##?????#####???????????? | | #????# [u ##### ##### #???????????? | | ############ * = g #???????????? | | ?? = Y* Y " #???????????? | | ?# # Y ????????????? | | ?? """ # ##### @ ####??????????????????? | | ?????""" ?## ##??####+#####???????????????????? | | ?????""" ???# #???# #???????????????????? | | ??????""????# #???# #???????????????????? | | ??????" ????# #???# #???????????????????? | | ????????????# #???# #???????????????????? | | ???????????? ???# #???????????????????? | | ??????????? ???# #???????????????????? | | ??????????? ???# #???????????????????? | | ?????????? ???# #???????????????????? | | ?????????+## ???# #???????????????????? | | ????????????# ????##########???????????????????? | | ?????????????? ??????????????????????????????????? | | ?????????????????????????????????????????????????? | | ?????????????????????????????????????????????????? | | ?????????????????????????????????????????????????? | | ?????????????????????????????????????????????????? | | ?????????????????????????????????????????????????? | | ?????????????????????????????????????????????????? | | ?????????????????????????????????????????????????? | | ?????????????????????????????????????????????????? | | ?????????????????????????????????????????????????? | | ?????????????????????????????????????????????????? | | ?????????????????????????????????????????????????? | | ?????????????????????????????????????????????????? | +----------------------------------------------------+ Best States ------------- Heat Dissipation 28 Energy Generation 10 Energy Capacity 125 Matter Stores 300 Matter Capacity 300 Sight Range 16 Terrain Scan Density 10 ECM Strength 1 Evasion (%) 63 Recoil Reduction 2 Item Schematics ----------------- Grenade Launcher | -9/Materials | Scanalyzed Datajack | -9/Materials | Scanalyzed Flight Unit | -9/Materials | Scanalyzed Robot Schematics ------------------ None Fabricated ------------ Nothing Repaired ---------- Nothing Studied --------- None Alien Tech Used ----------------- None Achievements -------------- For Emergencies Only Challenges ------------ None Game ------ Seed HardenedMetaDiverter Manual? 0 Play Time 00:33:36 Cumulative 24.5 hours Start 2025.12.08 @ 21:43:16 End 2025.12.08 @ 22:38:53 Sessions 1 Manual Loads 0 Difficulty Rogue Special Mode None Game No. 17 Rogue 17 Adventurer 0 Explorer 0 Win Type - Total 0 Types 0/0/0/0/0/0/0/0/0/0 Lore% 2 Gallery% 14 Achievement% 9 Wizard Run 0 Options --------- Layout 1 ASCII 0 Keyboard 0 Movement Numpad Keybinds 0 Fullscreen 2 Font 48/Smallcaps Map View 50x35 Zoom Use 0% Tactical HUD 0 Map Filters NONE Filters NONE Steam 1 RUN: e31f445d-1a1c-45a4-bd46-13db4fced247